bitfinex-derivatives/quotes_ETHF0:USTF0_20250320
["timestamp","ask_amount","ask_price","bid_price","bid_amount"]
[1742438827993,5.32288,2033.4,2033.3,4.5894]
[1742438828194,5.32288,2033.4,2033.3,5.37612]
[1742438828895,5.32288,2033.4,2033.3,4.5894]
[1742438829499,5.32288,2033.4,2033.3,5.37612]
[1742438829796,5.32288,2033.4,2033.3,4.5894]
[1742438829997,1.3142,2033.4,2033.3,5.37612]
[1742438830398,9.96867,2033.5,2033.4,0.78668]
[1742438830593,9.96867,2033.5,2033.4,2.86908]
[1742438830795,9.96867,2033.5,2033.4,3.55968]
[1742438831098,4.00864,2033.5,2033.4,2.773]
[1742438831595,4.00864,2033.5,2033.4,4.19217058]
[1742438832799,0.78648,2034.0,2033.9,0.78648]
[1742438832992,0.78649,2033.9,2033.8,3.2078]
[1742438833295,4.65669,2033.9,2033.8,3.2078]
[1742438833700,4.65669,2033.9,2033.8,4.5702]
[1742438833900,6.02679,2033.9,2033.8,4.5702]
[1742438834301,1.3701,2033.9,2033.8,5.35673]
[1742438834905,1.3701,2033.9,2033.8,1.3624]
[1742438835204,0.78653,2033.8,2033.7,0.6443]
[1742438835407,4.00753,2033.8,2033.7,0.6443]
[1742438835607,0.78657,2033.7,2033.6,1.3968]
[1742438835797,2.84447,2033.7,2033.6,1.3968]
[1742438836304,2.84447,2033.7,2033.6,2.0442]
[1742438837797,2.84447,2033.7,2033.6,2.8308]
[1742438838005,2.17657,2033.7,2033.6,2.0442]
[1742438839005,1.39,2033.7,2033.6,2.8308]
[1742438839204,0.78655,2033.8,2033.7,0.78657]
[1742438839400,2.13705,2033.8,2033.7,1.9579]
[1742438840009,2.13705,2033.8,2033.7,2.59014769]
[1742438840302,3.2078,2035.3,2033.9,8.166]
[1742438840503,1.3808,2035.2,2035.1,3.99382]
[1742438840694,1.3808,2035.2,2035.1,3.2078]
[1742438840899,1.96507,2035.1,2034.7,40.8]
[1742438841196,0.78612,2034.9,2034.8,0.56115806]
[1742438841601,0.78622,2034.6,2034.5,3.2078]
[1742438841901,0.78622,2034.6,2034.5,3.76815965]
[1742438841902,4.13922,2034.6,2034.5,3.76815965]
[1742438842101,4.13922,2034.6,2034.5,3.2078]
[1742438842502,5.52002,2034.6,2034.5,3.2078]
[1742438842910,5.51802,2034.6,2034.5,3.2078]
[1742438843205,5.51802,2034.6,2034.5,3.20041211]
[1742438843513,2.16702,2034.6,2034.5,3.20041211]
[1742438843810,5.51702,2034.6,2034.5,3.20041211]
[1742438845010,5.51302,2034.6,2034.5,3.20041211]
[1742438845605,5.51302,2034.6,2034.5,3.7600744]
[1742438846005,5.51302,2034.6,2034.5,3.20041211]
[1742438846414,2.16702,2034.6,2034.5,3.20041211]
[1742438846612,5.51202,2034.6,2034.5,3.20041211]
[1742438849513,5.50802,2034.6,2034.5,3.20041211]
[1742438851111,6.15802,2034.6,2034.5,3.20041211]
[1742438851302,0.78626,2034.5,2034.4,0.00738789]
[1742438851504,8.05496,2034.5,2034.4,0.00738789]
[1742438853413,0.78645,2034.0,2033.9,3.2078]
[1742438853614,10.08445,2034.0,2033.9,3.2078]
[1742438853810,0.78664,2033.5,2033.4,0.692]
[1742438854010,0.78664,2033.5,2033.4,5.83299867]
[1742438854212,0.78664,2033.5,2033.4,6.71716159]
[1742438854719,0.78664,2033.5,2033.4,6.70980498]
[1742438855217,0.00732558,2033.7,2033.5,0.78663]
[1742438855416,0.79389558,2033.7,2033.6,1.90679422]
[1742438856611,0.79389558,2033.7,2033.6,1.9067775]
[1742438856817,0.79389558,2033.7,2033.6,2.79093811]
[1742438856818,0.00732558,2033.7,2033.6,2.79093811]
[1742438857316,0.00732558,2033.7,2033.6,3.57753811]
[1742438858724,0.79389558,2033.7,2033.6,2.79070509]
[1742438861126,0.79389558,2033.7,2033.6,1.90664042]
[1742438861428,0.78664,2033.5,2033.4,3.8998]
[1742438861618,0.78664,2033.5,2033.4,5.3378568]
[1742438862327,2.17734,2033.5,2033.4,5.3378568]
[1742438862530,2.17734,2033.5,2033.4,7.4212368]
[1742438862725,0.78664,2033.5,2033.4,6.63451843]
[1742438863021,0.78664,2033.5,2033.4,7.42116843]
[1742438863229,0.78664,2033.5,2033.4,6.63451843]
[1742438863629,2.17734,2033.5,2033.4,6.63451843]
[1742438865330,2.17734,2033.5,2033.4,5.74958401]
[1742438866526,2.17734,2033.5,2033.4,2.54178401]
[1742438867129,2.17734,2033.5,2033.4,5.74958401]
[1742438867733,2.17734,2033.5,2033.4,5.05758401]
[1742438867925,2.17734,2033.5,2033.4,1.84978401]
[1742438868520,2.17734,2033.5,2033.4,1.2967]
[1742438868818,0.78672,2033.3,2033.2,1.3497692]
[1742438869024,0.78672,2033.3,2033.2,0.56018672]
[1742438869227,4.10372,2033.3,2033.2,0.56018672]
[1742438869424,4.79982,2033.3,2033.2,0.0073692]
[1742438869825,4.79982,2033.3,2033.2,0.56009364]
[1742438870227,4.79982,2033.3,2033.2,0.0073692]
[1742438870629,4.79982,2033.3,2033.2,1.3429692]
[1742438871634,3.317,2033.3,2033.2,1.3429692]
[1742438871837,4.10372,2033.3,2033.2,2.57161556]
[1742438872432,3.317,2033.3,2033.2,2.57161556]
[1742438872637,0.78671,2033.4,2033.2,4.24190541]
[1742438872931,0.78671,2033.4,2033.3,2.56838032]
[1742438873135,2.16911,2033.4,2033.3,2.56838032]
[1742438874737,2.16911,2033.4,2033.3,2.56847364]
[1742438875334,0.78671,2033.4,2033.3,2.56847364]
[1742438875734,2.13381,2033.4,2033.3,2.56847364]
[1742438876640,2.13381,2033.4,2033.3,2.56889969]
[1742438876842,2.80711,2033.4,2033.3,1.88839969]
[1742438877436,2.80711,2033.4,2033.3,1.88862786]
[1742438878039,2.80711,2033.4,2033.2,0.0073692]
[1742438878243,2.17092,2033.3,2033.2,0.0073692]
[1742438880045,5.37872,2033.3,2033.2,0.0073692]
[1742438881642,11.33872,2033.3,2033.2,0.0073692]
[1742438881843,0.78695,2032.7,2032.6,0.689]
[1742438882044,0.78695,2032.7,2032.6,0.55443858]
[1742438882437,0.78699,2032.6,2032.5,3.2078]
[1742438882636,0.78699,2032.6,2032.5,3.76222475]
[1742438883243,0.78699,2032.6,2032.5,3.2078]
[1742438885767,2.16179,2032.6,2032.5,3.2078]
[1742438887065,0.78707,2032.4,2032.3,1.3124692]
[1742438887266,4.09607,2032.4,2032.3,0.0073692]
[1742438889170,7.30387,2032.4,2032.3,0.0073692]
[1742438889366,8.64807,2032.4,2032.3,0.0073692]
[1742438889972,0.7873,2031.8,2031.7,0.6994]
[1742438890164,0.7873,2031.8,2031.7,2.0803]
[1742438890366,0.7873,2031.8,2031.7,1.3809]
[1742438890676,2.1315,2031.8,2031.7,1.3809]
[1742438892570,0.78734,2031.7,2031.6,44.0078]
[1742438892776,5.50154,2031.7,2031.6,42.1536]
[1742438895668,5.50154,2031.7,2031.6,1.3536]
[1742438895871,0.78738,2031.6,2031.5,0.0073692]
[1742438896074,2.10898,2031.6,2031.5,0.0073692]
[1742438896573,8.06898,2031.6,2031.5,0.0073692]
[1742438901472,11.36498,2031.6,2031.5,1.3353692]
[1742438903970,10.03838,2031.6,2031.5,1.3353692]
[1742438905074,10.03638,2031.6,2031.5,1.3353692]
[1742438907177,4.07638,2031.6,2031.5,1.3353692]
[1742438910681,4.07638,2031.6,2031.5,0.0073692]
[1742438916676,4.75238,2031.6,2031.5,0.0073692]
[1742438918277,4.75238,2031.6,2031.5,0.5553696]
[1742438920782,3.965,2031.6,2031.5,0.5553696]
[1742438921085,4.05438,2031.6,2031.5,0.5553696]
[1742438921479,4.05438,2031.6,2031.5,1.8397696]
[1742438922786,4.70638,2031.6,2031.5,1.8397696]
[1742438923478,4.78993186,2031.6,2031.5,0.0073692]
[1742438923677,4.78993338,2031.6,2031.5,0.0073692]
[1742438927689,10.74993338,2031.6,2031.5,0.0073692]
[1742438928791,10.66638,2031.6,2031.5,0.0073692]
[1742438928988,10.74993601,2031.6,2031.5,0.0073692]
[1742438930593,10.74993522,2031.6,2031.5,0.0073692]
[1742438932292,10.74993578,2031.6,2031.5,0.0073692]
[1742438934093,10.74993536,2031.6,2031.5,0.0073692]
[1742438934687,13.95773536,2031.6,2031.5,0.0073692]
[1742438935992,13.95773536,2031.6,2031.5,9.2e-06]
[1742438935993,16.45773536,2031.6,2031.5,9.2e-06]
[1742438936197,0.78753,2031.2,2031.1,1.3348]
[1742438936495,7.25033,2031.2,2031.1,1.3348]
[1742438937187,8.54403,2031.2,2031.1,1.3348]
[1742438942596,0.78761,2031.0,2030.9,0.0073692]
[1742438942783,4.03361,2031.0,2030.9,0.0073692]
[1742438943191,5.97071,2031.0,2030.9,0.0073692]
[1742438943793,6.05428879,2031.0,2030.9,0.0073692]
[1742438944390,6.05427849,2031.0,2030.9,0.0073692]
[1742438945995,5.97071,2031.0,2030.9,0.0073692]
[1742438946294,5.32811,2031.0,2030.9,0.0073692]
[1742438946886,5.32811,2031.0,2030.9,0.6970692]
[1742438947086,4.03161,2031.0,2030.9,0.6970692]
[1742438947285,4.03161,2031.0,2030.9,2.0972692]
[1742438949201,4.03061,2031.0,2030.9,2.0972692]
[1742438949386,4.03061,2031.0,2030.9,2.63567085]
[1742438950295,5.96,2031.1,2030.9,2.63567085]
[1742438950296,6.74759,2031.1,2030.9,2.63567085]
[1742438950485,6.74757,2031.1,2031.0,5.09730165]
[1742438950799,9.99157,2031.1,2031.0,5.09730165]
[1742438952799,9.99157,2031.1,2031.0,5.09751378]
[1742438953702,6.74757,2031.1,2031.0,5.09751378]
[1742438954097,0.78757,2031.1,2031.0,5.09751378]
[1742438954503,0.78757,2031.1,2031.0,5.73291586]
[1742438955303,0.78757,2031.1,2031.0,5.09751378]
[1742438955596,3.24,2031.2,2031.0,5.09751378]
[1742438955597,0.78755,2031.2,2031.1,0.78757]
[1742438955807,0.78755,2031.2,2031.1,1.82141378]
[1742438956100,0.78755,2031.2,2031.1,2.52121378]
[1742438956293,0.78752,2031.3,2031.1,5.6564631]
[1742438956493,0.78752,2031.3,2031.2,1.82141378]
[1742438957704,0.78752,2031.3,2031.2,2.60894378]
[1742438958405,0.78752,2031.3,2031.2,3.24407454]
[1742438958705,0.78752,2031.3,2031.2,2.70546076]
[1742438958901,0.78752,2031.3,2031.2,3.24382488]
[1742438959104,0.7948292,2031.4,2031.3,0.78749]
[1742438959406,0.7948292,2031.4,2031.3,2.48076412]
[1742438960905,2.0938292,2031.4,2031.3,2.48076412]
[1742438962505,2.0938292,2031.4,2031.3,2.48056808]
[1742438964508,2.7886292,2031.4,2031.3,2.48056808]
[1742438966799,2.7886292,2031.4,2031.3,1.9424]
[1742438967307,2.7886292,2031.4,2031.3,1.283]
[1742438969601,2.7886292,2031.4,2031.3,1.82115176]
[1742438970297,2.0938292,2031.4,2031.3,1.82115176]
[1742438970902,2.0938292,2031.4,2031.3,1.82115163]
[1742438971704,0.78741,2031.6,2031.4,0.78745]
[1742438972009,4.01641,2031.6,2031.5,3.20225163]
[1742438972506,0.78741,2031.6,2031.5,3.20225163]
[1742438972710,2.11575,2031.7,2031.6,0.78738]
[1742438972897,2.11575,2031.7,2031.6,1.89973978]
[1742438973299,2.11575,2031.7,2031.6,1.89967804]
[1742438974807,2.11575,2031.7,2031.6,1.8997052]
[1742438977016,2.11575,2031.7,2031.6,1.89973289]
[1742438978916,2.11575,2031.7,2031.6,1.89970901]
[1742438979115,2.11575,2031.7,2031.6,1.8997087]
[1742438980912,2.11575,2031.7,2031.6,1.89985237]
[1742438982611,2.11575,2031.7,2031.6,0.53795237]
[1742438982823,2.11575,2031.7,2031.6,3.74575237]
[1742438983123,2.11575,2031.7,2031.6,3.74548969]
[1742438983619,2.11575,2031.7,2031.3,3.2078]
[1742438983620,0.78746,2031.4,2031.3,3.2078]
[1742438983812,4.01646,2031.4,2031.3,3.74548089]
[1742438984010,4.01646,2031.4,2031.3,3.2078]
[1742438984412,0.78753,2031.2,2031.1,1.3883]
[1742438984613,0.78753,2031.2,2031.1,1.92617474]
[1742438984922,0.78753,2031.2,2031.1,1.92619442]
[1742438985218,1.47173,2031.2,2031.1,1.92619442]
[1742438986716,1.3039,2031.3,2031.1,1.92619442]
[1742438986915,1.3039,2031.3,2031.2,3.37661164]
[1742438987415,1.3039,2031.3,2031.2,3.37644826]
[1742438987924,0.78749,2031.3,2031.2,2.58891826]
[1742438988220,0.78749,2031.3,2031.2,43.38891826]
[1742438988418,1.2714,2031.4,2031.2,43.38891826]
[1742438988622,2.05886,2031.4,2031.3,1.89981826]
[1742438988816,2.05886,2031.4,2031.3,2.56841826]
[1742438989011,2.05886,2031.4,2031.3,1.89981826]
[1742438989220,5.28786,2031.4,2031.3,0.53761826]
[1742438991117,0.78749,2031.3,2031.2,1.3803]
[1742438991318,2.82249,2031.3,2031.2,1.91783148]
[1742438991615,2.82249,2031.3,2031.2,0.53753148]
[1742438993026,0.78753,2031.2,2031.1,42.1803]
[1742438993221,2.10863,2031.2,2031.1,42.71779943]
[1742438995028,2.10863,2031.2,2031.1,42.7177677]
[1742438995618,5.33763,2031.2,2031.1,42.7177677]
[1742438999129,5.33763,2031.2,2031.1,42.71728619]
[1742438999831,0.78757,2031.1,2031.0,3.2078]
[1742439000029,2.77047,2031.1,2031.0,3.74474408]
[1742439002434,2.77047,2031.1,2031.0,3.74462803]
[1742439002726,0.78761,2031.0,2030.9,0.0073692]
[1742439002934,5.94771,2031.0,2030.9,0.0073692]
[1742439008837,5.94771,2031.0,2030.9,1.3417692]
[1742439014435,2.07601,2031.0,2030.9,1.3417692]
[1742439014631,5.30501,2031.0,2030.9,2.0404692]
[1742439014947,5.30501,2031.0,2030.9,2.57752742]
[1742439015242,0.78761,2031.0,2030.9,2.57752749]
[1742439015543,2.10081,2031.0,2030.9,2.57752749]
[1742439017938,0.78761,2031.0,2030.9,2.57752749]
[1742439020347,0.78761,2031.0,2030.9,2.57716282]
[1742439022250,0.78761,2031.0,2030.9,2.0404692]
[1742439022443,0.78761,2031.0,2030.9,2.5774038]
[1742439022642,0.78761,2031.0,2030.9,3.3650538]
[1742439023042,0.78761,2031.0,2030.9,2.5774038]
[1742439024253,2.10271,2031.0,2030.9,2.5774038]
[1742439024737,2.10271,2031.0,2030.9,1.8787038]
[1742439026451,2.10271,2031.0,2030.9,1.87917205]
[1742439027254,5.33171,2031.0,2030.9,1.87917205]
[1742439027457,6.01941,2031.0,2030.9,1.87917205]
[1742439028453,6.01941,2031.0,2030.9,1.87952823]
[1742439030457,6.01941,2031.0,2030.9,1.87971587]
[1742439032359,6.01941,2031.0,2030.9,1.87989377]
[1742439033259,6.01941,2031.0,2030.9,1.87985294]
[1742439034460,6.01941,2031.0,2030.9,1.88002034]
[1742439035850,5.33171,2031.0,2030.9,2.66767034]
[1742439036058,0.78761,2031.0,2030.9,1.88002034]
[1742439036466,0.78761,2031.0,2030.9,2.51514507]
[1742439036666,2.14961,2031.0,2030.9,2.51514507]
[1742439036860,0.78761,2031.0,2030.9,3.30279507]
[1742439037268,0.7876,2031.1,2031.0,0.78759]
[1742439037463,0.7876,2031.1,2031.0,4.53373954]
[1742439037767,0.78756,2031.2,2031.1,0.78755]
[1742439037965,0.78756,2031.2,2031.1,1.32589954]
[1742439038167,0.7875,2031.4,2031.3,0.78747]
[1742439038370,0.7875,2031.4,2031.3,1.32581954]
[1742439038879,0.7875,2031.4,2031.3,4.38117587]
[1742439039072,2.0891,2031.4,2031.3,4.38117587]
[1742439039774,2.0891,2031.4,2031.3,5.16866587]
[1742439040377,1.3016,2031.4,2031.3,5.16866587]
[1742439040775,0.78744,2031.5,2031.4,0.78746]
[1742439040978,0.78744,2031.5,2031.4,1.32580954]
[1742439041573,0.78744,2031.5,2031.4,0.53834954]
[1742439042383,0.78746,2031.4,2031.3,3.99527]
[1742439042571,2.07146,2031.4,2031.3,4.53240814]
[1742439043882,2.07146,2031.4,2031.3,4.53242814]
[1742439044183,2.07146,2031.4,2031.3,3.74493814]
[1742439044382,2.07146,2031.4,2031.3,4.53194566]
[1742439044680,1.284,2031.4,2031.3,4.53194566]
[1742439044882,2.07146,2031.4,2031.3,4.53194566]
[1742439045081,2.07146,2031.4,2031.3,5.16486471]
[1742439045277,1.284,2031.4,2031.3,5.16486471]
[1742439045778,2.07146,2031.4,2031.3,5.16486471]
[1742439046078,1.284,2031.4,2031.3,5.16486471]
[1742439047282,2.07146,2031.4,2031.3,5.16486471]
[1742439047671,2.07146,2031.4,2031.3,4.37737471]
[1742439048070,3.42216,2031.4,2031.3,3.84071905]
[1742439048477,3.42216,2031.4,2031.3,3.2078]
[1742439048678,3.42216,2031.4,2031.3,3.74426508]
[1742439051174,3.42216,2031.4,2031.3,3.74435921]
[1742439053582,3.42216,2031.4,2031.3,5.04135921]
[1742439054277,3.42216,2031.4,2031.3,5.04124734]
[1742439056487,3.42216,2031.4,2031.3,5.04118212]
[1742439057175,3.42216,2031.4,2031.3,5.82867212]
[1742439057176,1.284,2031.4,2031.3,5.82867212]
[1742439057377,0.78746,2031.4,2031.3,5.82867212]
[1742439057880,0.78746,2031.4,2031.3,46.62867212]
[1742439058080,1.3581,2031.5,2031.4,0.78746]
[1742439058282,1.3581,2031.5,2031.4,2.01624212]
[1742439058484,1.3581,2031.5,2031.4,3.36004212]
[1742439058781,0.78739,2031.6,2031.5,0.78742]
[1742439058980,0.78739,2031.6,2031.5,2.66760212]
[1742439058981,2.14549,2031.6,2031.5,2.66760212]
[1742439060179,2.14549,2031.6,2031.5,2.13122]
[1742439060389,2.14549,2031.6,2031.5,2.66759325]
[1742439061182,2.14549,2031.6,2031.5,1.88017325]
[1742439064288,5.37249,2031.6,2031.5,0.53637325]
[1742439067487,0.78742,2031.5,2031.4,1.3863]
[1742439067687,2.14182,2031.5,2031.4,1.92438507]
[1742439067981,2.14182,2031.5,2031.4,2.55924503]
[1742439068388,1.3473,2031.7,2031.5,0.78741]
[1742439068587,1.377,2031.6,2031.5,4.66731]
[1742439068784,2.16441,2031.6,2031.5,4.41812267]
[1742439069179,2.16441,2031.6,2031.5,3.74602267]
[1742439069885,2.16441,2031.6,2031.5,4.38088263]
[1742439071393,2.16441,2031.6,2031.5,3.74602267]
[1742439071584,2.16441,2031.6,2031.5,3.74604314]
[1742439072186,5.39041,2031.6,2031.5,3.74604314]
[1742439073687,5.39041,2031.6,2031.5,3.2078]
[1742439077397,0.78757,2031.1,2031.0,4.5436]
[1742439077592,0.78757,2031.1,2031.0,5.08178001]
[1742439077985,2.12307,2031.1,2031.0,5.08178001]
[1742439078596,1.3355,2031.1,2031.0,6.50405544]
[1742439078899,4.01347,2031.4,2031.2,0.78751]
[1742439079093,0.78747,2031.4,2031.3,3.74598001]
[1742439079294,0.78747,2031.4,2031.3,5.04834544]
[1742439079609,0.78747,2031.4,2031.3,5.04811536]
[1742439081792,0.78747,2031.4,2031.3,5.83560536]
[1742439081995,0.78747,2031.4,2031.3,5.04811536]
[1742439082901,0.78747,2031.4,2031.3,5.8359459]
[1742439083295,0.78747,2031.4,2031.3,5.0484559]
[1742439083498,0.78747,2031.4,2031.3,4.51016543]
[1742439083692,0.78747,2031.4,2031.3,5.83595661]
[1742439083889,1.3355,2031.5,2031.3,5.83595661]
[1742439084094,0.78742,2031.5,2031.4,1.98696118]
[1742439084799,0.78742,2031.5,2031.4,2.62162661]
[1742439085190,0.78742,2031.5,2031.4,2.50719139]
[1742439085391,0.78742,2031.5,2031.4,1.83416661]
[1742439087498,0.78742,2031.5,2031.4,1.29586543]
[1742439087696,0.78742,2031.5,2031.4,1.83404782]
[1742439088207,0.78742,2031.5,2031.4,3.16284782]
[1742439089306,0.78742,2031.5,2031.4,2.50164782]
[1742439090108,0.78742,2031.5,2031.4,2.65444239]
[1742439090409,0.78742,2031.5,2031.4,3.32744239]
[1742439090802,2.12361,2031.6,2031.5,0.78742]
[1742439091107,0.78741,2031.6,2031.5,2.64080239]
[1742439091610,0.78741,2031.6,2031.5,3.27572677]
[1742439092108,1.4086,2031.7,2031.5,2.48830677]
[1742439092304,1.4086,2031.7,2031.6,5.06124029]
[1742439092500,1.4086,2031.7,2031.6,5.70474029]
[1742439093009,1.4086,2031.7,2031.6,6.33960677]
[1742439093305,2.19596,2031.7,2031.6,6.33960677]
[1742439093609,2.19596,2031.7,2031.6,6.33972467]
[1742439094105,0.0073692,2031.8,2031.7,0.78734]
[1742439094408,2.0820692,2031.8,2031.7,2.60079819]
[1742439094621,0.0073692,2031.8,2031.7,2.60079819]
[1742439095006,1.2874,2032.1,2032.0,0.78722]
[1742439095208,0.78717,2032.2,2032.0,4.53337819]
[1742439095509,2.07457,2032.2,2032.1,1.81265418]
[1742439097706,2.07457,2032.2,2032.1,0.53716298]
[1742439098510,5.29957,2032.2,2032.1,0.53716298]
[1742439098810,0.78722,2032.0,2031.9,0.0073692]
[1742439099106,0.78722,2032.0,2031.9,0.54458245]
[1742439099107,4.01222,2032.0,2031.9,0.54458245]
[1742439099514,5.36492,2032.0,2031.9,0.54458245]
[1742439101509,5.36492,2032.0,2031.9,0.54437661]
[1742439103508,5.36492,2032.0,2031.9,0.54452348]
[1742439104815,5.36492,2032.0,2031.9,0.0073692]
[1742439105012,0.7873,2031.8,2031.7,3.2078]
[1742439105209,4.0123,2031.8,2031.7,3.2078]
[1742439106121,0.78738,2031.6,2031.5,1.3010692]
[1742439106323,0.78738,2031.6,2031.5,1.83851677]
[1742439106825,2.82798,2031.6,2031.5,1.83851677]
[1742439107127,6.05298,2031.6,2031.5,0.0073692]
[1742439107519,6.05298,2031.6,2031.5,0.54500493]
[1742439108623,6.05298,2031.6,2031.5,0.0073692]
[1742439114315,6.05298,2031.6,2031.5,0.54474139]
[1742439115124,2.82798,2031.6,2031.5,0.54474139]
[1742439115331,2.13608,2031.6,2031.5,0.54474139]
[1742439115521,2.13608,2031.6,2031.5,1.82717067]
[1742439115827,0.78738,2031.6,2031.5,1.82717067]
[1742439116323,2.07538,2031.6,2031.5,1.82717067]
[1742439117422,2.07538,2031.6,2031.5,1.2899692]
[1742439117622,2.07538,2031.6,2031.5,1.82738089]
[1742439119125,1.96821,2031.9,2031.5,1.82738089]
[1742439119328,0.78737,2031.7,2031.6,6.55155169]
[1742439119517,0.78737,2031.7,2031.6,5.76438123]
[1742439119723,0.78733,2031.8,2031.7,0.78734]
[1742439119929,0.78728,2031.9,2031.8,0.78728]
[1742439120132,0.78728,2031.9,2031.8,3.30426123]
[1742439120325,2.18431,2032.1,2032.0,0.78722]
[1742439120526,0.78721,2032.1,2032.0,0.53758123]
[1742439120928,0.78721,2032.1,2032.0,1.81458123]
[1742439121132,0.78721,2032.1,2032.0,1.81438809]
[1742439121736,0.78721,2032.1,2032.0,2.47068809]
[1742439122337,0.78721,2032.1,2032.0,3.25790809]
[1742439122839,1.3971,2032.2,2032.1,0.78718]
[1742439122840,0.78715,2032.2,2032.1,0.78718]
[1742439123037,0.78715,2032.2,2032.1,1.81410683]
[1742439123338,0.78715,2032.2,2032.1,2.51160683]
[1742439123524,2.07685,2032.2,2032.1,2.51160683]
[1742439124236,0.78715,2032.2,2032.1,3.29878683]
[1742439124540,0.7944592,2032.4,2032.3,0.78711]
[1742439124728,0.7944592,2032.4,2032.3,45.33163596]
[1742439124934,0.7944592,2032.4,2032.3,44.54452596]
[1742439125335,0.7944592,2032.4,2032.3,45.33163596]
[1742439126133,0.78701,2032.6,2032.5,0.78703]
[1742439126334,0.78701,2032.6,2032.5,1.32375596]
[1742439126638,0.78701,2032.6,2032.5,1.32328447]
[1742439126835,0.78701,2032.6,2032.5,3.37368447]
[1742439127031,3.2078,2032.8,2032.5,2.58665447]
[1742439127237,0.78695,2032.7,2032.6,1.90915447]
[1742439127431,0.78695,2032.7,2032.6,5.11695447]
[1742439127634,4.5844692,2032.9,2032.6,5.11695447]
[1742439127833,0.7942692,2032.9,2032.7,2.69608447]
[1742439128028,0.7942692,2032.9,2032.8,3.40026447]
[1742439128554,0.7942692,2032.9,2032.8,2.61335447]
[1742439128745,2.1473692,2032.9,2032.8,2.61235236]
[1742439130250,2.1473692,2032.9,2032.8,2.0771]
[1742439132243,2.1473692,2032.9,2032.8,2.7442]
[1742439133038,2.1473692,2032.9,2032.8,3.53111]
[1742439133238,2.1473692,2032.9,2032.8,2.7442]
[1742439135343,0.7942692,2032.9,2032.8,2.7442]
[1742439136347,0.7942692,2032.9,2032.8,3.53111]
[1742439136748,0.0073692,2032.9,2032.8,3.53111]
[1742439136944,0.7942392,2032.9,2032.8,2.7442]
[1742439137650,0.7942392,2032.9,2032.8,3.53111]
[1742439139956,0.7942392,2032.9,2032.8,1.3729]
[1742439140148,1.4819392,2032.9,2032.8,1.3729]
[1742439141651,0.78695,2032.7,2032.6,4.5038]
[1742439141846,0.78695,2032.7,2032.6,3.2078]
[1742439143150,2.15855,2032.7,2032.6,4.5294]
[1742439144356,2.15855,2032.7,2032.6,5.31639]
[1742439144659,2.15855,2032.7,2032.6,5.85124517]
[1742439144859,1.3716,2032.7,2032.6,5.85124517]
[1742439145047,2.15855,2032.7,2032.6,5.85124517]
[1742439145955,2.15855,2032.7,2032.6,5.06425517]
[1742439146156,2.15855,2032.7,2032.6,4.5294]
[1742439146742,2.15855,2032.7,2032.6,5.06473317]
[1742439147165,2.15855,2032.7,2032.6,3.74313317]
[1742439147354,2.15855,2032.7,2032.6,3.2078]
[1742439148253,0.6950692,2032.9,2032.6,3.74390292]
[1742439148454,0.0073692,2032.9,2032.8,0.78691]
[1742439148661,0.0073692,2032.9,2032.8,3.29934241]
[1742439150547,0.0073692,2032.9,2032.8,3.932618]
[1742439151358,1.4064692,2032.9,2032.8,3.932618]
[1742439152061,1.4064692,2032.9,2032.8,7.153618]
[1742439152455,2.1933392,2032.9,2032.8,7.153618]
[1742439152754,2.1933392,2032.9,2032.8,7.15420861]
[1742439153543,2.1933392,2032.9,2032.8,2.47869861]
[1742439153751,2.1933392,2032.9,2032.8,3.26560861]
[1742439154668,2.8527392,2032.9,2032.8,3.26782761]
[1742439156046,2.8527392,2032.9,2032.8,1.17241761]
[1742439156360,6.0737392,2032.9,2032.8,1.17241761]
[1742439157159,6.0737392,2032.9,2032.8,0.53792666]
[1742439158253,6.0737392,2032.9,2032.8,2.44317695]
[1742439158453,2.8527392,2032.9,2032.8,1.90525029]
[1742439158657,6.0737392,2032.9,2032.8,3.23085784]
[1742439159759,6.0737392,2032.9,2032.8,2.44394784]
[1742439160554,6.0737392,2032.9,2032.8,2.44392611]
[1742439160751,2.8527392,2032.9,2032.8,2.44392611]
[1742439161062,2.8527392,2032.9,2032.8,1.17412611]
[1742439161263,2.8527392,2032.9,2032.8,0.53867582]
[1742439162458,0.78695,2032.7,2032.6,4.4793]
[1742439162654,0.78695,2032.7,2032.6,5.01808419]
[1742439163061,1.47785,2032.7,2032.6,5.65358032]
[1742439163254,1.47785,2032.7,2032.6,6.44057032]
[1742439163466,0.78695,2032.7,2032.6,6.44055032]
[1742439164060,0.78695,2032.7,2032.6,5.65358032]
[1742439164266,1.43055,2032.7,2032.6,5.65358032]
[1742439165866,2.10501,2032.8,2032.7,0.78695]
[1742439166068,2.10501,2032.8,2032.7,2.61633419]
[1742439166468,2.10501,2032.8,2032.7,2.61618345]
[1742439166671,2.10501,2032.8,2032.7,3.25167958]
[1742439168371,2.10501,2032.8,2032.7,3.92514496]
[1742439170276,1.3181,2032.8,2032.7,3.92514496]
[1742439170465,1.3181,2032.8,2032.7,3.92515527]
[1742439171076,1.3181,2032.8,2032.7,3.92524242]
[1742439171969,0.0073692,2032.9,2032.8,0.78691]
[1742439172169,0.0073692,2032.9,2032.8,4.67110629]
[1742439172677,0.0073692,2032.9,2032.8,5.30646732]
[1742439173077,0.0073692,2032.9,2032.8,8.52646732]
[1742439174484,0.0073692,2032.9,2032.8,8.52616095]
[1742439175163,1.3282692,2032.9,2032.8,8.52616095]
[1742439175668,0.0073692,2032.9,2032.8,8.52616095]
[1742439176477,0.0073692,2032.9,2032.8,8.52587104]
[1742439177972,1.3298692,2032.9,2032.8,8.52587104]
[1742439178470,1.3298692,2032.9,2032.8,8.52585103]
[1742439179065,1.3298692,2032.9,2032.8,11.73365103]
[1742439180564,1.3298692,2032.9,2032.8,11.73358171]
[1742439181664,0.0073692,2032.9,2032.8,11.73358171]
[1742439181867,0.0073692,2032.9,2032.8,11.73338025]
[1742439182669,0.0073692,2032.9,2032.8,12.27157519]
[1742439182872,0.0073692,2032.9,2032.8,11.73339677]
[1742439185879,0.0073692,2032.9,2032.8,11.73314404]
[1742439186775,1.4072692,2032.9,2032.8,11.73314404]
[1742439187176,2.1941392,2032.9,2032.8,8.51314404]
[1742439187476,2.8291392,2032.9,2032.8,8.51314404]
[1742439187780,2.0422692,2032.9,2032.8,8.51305405]